Workbook

Sheet Cover
E1: THE REPUBLIC OF THE GAMBIA
D3: Gambia National Accounts Statistics Annual Bulletin
E25: JUNE 2020
A33: GAMBIA BUREAU OF STATISTICS, GBoS
A34: https://www.gbosdata.org/

Sheet Content
A2: TABLE OF CONTENTS
A5: Table 1.1: Gross Domestic Product (GDP) at Current Market Prices (GMD Million)
A7: Table 1.2: Gross Domestic Product (GDP) at Constant 2013 Prices (GMD Million)
A9: Table 1.3: Contribution of Gross Domestic Product (in percent)
A11: Table 1.4: Real Growth Rates of Gross Domestic Product at Constant 2013 Prices (in percent)
A13: Table 1.5: GDP deflator

Sheet Tab1.1_2013_GDP_E_Current
A1: GDP by Expenditure approach at market prices (2013 base year)
Q2: (GMD Million)
A3: No. | B3: Description | C3: 2004 | D3: 2005 | E3: 2006 | F3: 2007 | G3: 2008 | H3: 2009 | I3: 2010 | J3: 2011 | K3: 2012 | L3: 2013 | M3: 2014 | N3: 2015 | O3: 2016 | P3: 2017 | Q3: 2018 | R3: 2019*
A4: 1 | B4: Final Consumption Expenditure | C4: =C5+C6+C7 -> 27019.017 | D4: 26238.01829 | E4: 27425.80192 | F4: 28255.78577 | G4: 32198.01532 | H4: 38587.783 | I4: 42462.46737 | J4: 39080.73123 | K4: 42567.18794 | L4: 46900.46275 | M4: 49390.43434 | N4: 52715.81322 | O4: 56295.96748 | P4: 65856.70523 | Q4: 76683.77088 | R4: =R5+R6+R7 -> 85994.77309
A5: 1.1 | B5: Households Final Consumption Expenditures | C5: 23837.00114 | D5: 22863.04252 | E5: 23798.24532 | F5: 25116.20655 | G5: 28972.05372 | H5: 34541.97218 | I5: 37806.58783 | J5: 34207.87478 | K5: 37382.03114 | L5: 41127.76091 | M5: 43587.51805 | N5: 46488.66092 | O5: 49376.74486 | P5: 58810.62003 | Q5: 69621.60829 | R5: 76703.66867
A6: 1.2 | B6: General Government final consumption | C6: 2507.984859 | D6: 2665.29422 | E6: 2856.186546 | F6: 2332.769763 | G6: 2377.674307 | H6: 3135.859461 | I6: 3682.798284 | J6: 3852.727534 | K6: 4117.573695 | L6: 4587.63466 | M6: 4534.079866 | N6: 4877.798564 | O6: 5438.771587 | P6: 5517.984334 | Q6: 5490.248859 | R6: 7484.02491
A7: 1.3 | B7: NPISH final consumption | C7: 674.0309991 | D7: 709.6815408 | E7: 771.3700547 | F7: 806.8094514 | G7: 848.2872949 | H7: 909.9513543 | I7: 973.0812535 | J7: 1020.128925 | K7: 1067.583108 | L7: 1185.067171 | M7: 1268.836418 | N7: 1349.353736 | O7: 1480.451034 | P7: 1528.100868 | Q7: 1571.913728 | R7: 1807.079507
A8: 2 | B8: Gross Fixed Capital Formation | C8: =C9+C12+C13 -> 5022.023995 | D8: =D9+D12+D13 -> 4631.666742 | E8: 5002.406927 | F8: 5048.264535 | G8: 4890.550818 | H8: 5149.595118 | I8: 5114.406898 | J8: 5679.249866 | K8: 6469.303158 | L8: 7276.853356 | M8: 8544.303474 | N8: 11921.13662 | O8: 16045.93049 | P8: 16104.45685 | Q8: 16795.81541 | R8: =R9+R12+R13 -> 20590.93963
A9: 2.1 | B9: Total Construction | C9: 3049.489455 | D9: 2276.053764 | E9: 2412.40518 | F9: 2309.562049 | G9: 2622.882546 | H9: 2825.841197 | I9: 3079.884321 | J9: 3511.215961 | K9: 4125.489882 | L9: 4556.83422 | M9: 5771.314617 | N9: 9206.551007 | O9: 13239.79354 | P9: 13013.2779 | Q9: 13574.94019 | R9: 16025.046
A10: 2.1.1 | B10: Public Construction | L10: 2508.844982 | M10: 2512.374749 | N10: 2859.540598 | O10: 4588.769 | P10: 4674.374497 | Q10: 4735.75385 | R10: 6279.512087
A11: 2.1.2 | B11: Private Construction | L11: 2047.989238 | M11: 3258.939869 | N11: 6347.010409 | O11: 8651.024542 | P11: 8338.903406 | Q11: 8839.18634 | R11: 9745.533917
A12: 2.2 | B12: Machinery and Equipment | C12: 1175.396976 | D12: 1504.943688 | E12: 1634.82633 | F12: 1806.210035 | G12: 1280.583737 | H12: 1289.109573 | I12: 1017.175634 | J12: 1348.22481 | K12: 1728.579465 | L12: 1835.101865 | M12: 1875.391524 | N12: 1859.275137 | O12: 1912.062539 | P12: 2176.432362 | Q12: 2314.017724 | R12: 3637.38027
A13: 2.3 | B13: Livestock | C13: 797.1375642 | D13: 850.6692899 | E13: 955.1754172 | F13: 932.4924506 | G13: 987.0845347 | H13: 1034.644348 | I13: 1017.346943 | J13: 819.8090957 | K13: 615.2338111 | L13: 884.9172717 | M13: 897.5973329 | N13: 855.3104733 | O13: 894.0744087 | P13: 914.7465889 | Q13: 906.8574965 | R13: 928.5133593
A14: 3=1+2 | B14: Domestic Demand | C14: =C4+C8 -> 32041.04099 | D14: =D4+D8 -> 30869.68503 | E14: 32428.20885 | F14: 33304.0503 | G14: 37088.56614 | H14: 43737.37812 | I14: 47576.87427 | J14: 44759.9811 | K14: 49036.4911 | L14: 54177.3161 | M14: 57934.73781 | N14: 64636.94984 | O14: 72341.89797 | P14: 81961.16209 | Q14: 93479.58629 | R14: =R4+R8 -> 106585.7127
A15: 4 | B15: Net exports | C15: =C16+C19 -> -2170.46644 | D15: =D16+D19 -> -2370.47274 | E15: -3237.292 | F15: -2453.569 | G15: -2300.562 | H15: -4532.095667 | I15: -3130.618 | J15: -3684.779077 | K15: -3802.545 | L15: -3711.545745 | M15: -7482.9879 | N15: -8051.8725 | O15: -9142.328343 | P15: -13846.16932 | Q15: -15812.21 | R15: =R16+R19 -> -13039.78
A16: 4.1 | B16: Export of Goods and Services (FOB) | C16: 5262.044 | D16: 5330.329 | E16: 5639.638 | F16: 6488.186 | G16: 5680.968 | H16: 4598.1175 | I16: 5697.762 | J16: 7005.119333 | K16: 8794.97 | L16: 9387.777333 | M16: 11204.31 | N16: 11479.74 | O16: 10245.41279 | P16: 11776.4914 | Q16: 17478.42 | R16: 18866.24
A17: 4.1.1 | B17: Exports of Goods | C17: 3207.324 | D17: 2981.129 | E17: 3055.348 | F17: 3310.446 | G17: 3067.0755 | H17: 1825.37 | I17: 2065.02 | J17: 3012.485 | K17: 4028.17 | L17: 4730.96 | M17: 5151.3 | N17: 4467.74 | O17: 4413.500804 | P17: 6015.256131 | Q17: 7609.51 | R17: 7723.69
A18: 4.1.2 | B18: Exports of Services | C18: 2054.72 | D18: 2349.2 | E18: 2584.29 | F18: 3177.74 | G18: 2613.8925 | H18: 2772.7475 | I18: 3632.742 | J18: 3992.634333 | K18: 4766.8 | L18: 4656.817333 | M18: 6053.01 | N18: 7012 | O18: 5831.911983 | P18: 5761.235266 | Q18: 9868.91 | R18: 11142.55
A19: 4.2 | B19: Import of Goods and Services (FOB) | C19: -7432.51044 | D19: -7700.80174 | E19: -8876.93 | F19: -8941.755 | G19: -7981.53 | H19: -9130.213167 | I19: -8828.38 | J19: -10689.89841 | K19: -12597.515 | L19: -13099.32308 | M19: -18687.2979 | N19: -19531.6125 | O19: -19387.74113 | P19: -25622.66072 | Q19: -33290.63 | R19: -31906.02
A20: 4.2.1 | B20: Imports of Goods | C20: -6089.19068 | D20: -6361.11678 | E20: -6236.62896 | F20: -6809.17352 | G20: -6083.09741 | H20: -6928.51934 | I20: -6796.6099 | J20: -8613.77556 | K20: -10419.9202 | L20: -10755.55568 | M20: -13832.2371 | N20: -14249.00477 | O20: -13625.25659 | P20: -19928.2979 | Q20: -27956.71 | R20: -26632.26
A21: 4.2.2 | B21: Imports of Services | C21: -1343.31976 | D21: -1339.68496 | E21: -2640.30104 | F21: -2132.58148 | G21: -1898.43259 | H21: -2201.693827 | I21: -2031.7701 | J21: -2076.12285 | K21: -2177.5948 | L21: -2343.767398 | M21: -4855.0608 | N21: -5282.60773 | O21: -5762.484541 | P21: -5694.362823 | Q21: -5333.92 | R21: -5273.76
A22: 5 | B22: Statistical discrepancies and Changes in inventories | C22: -984.6181208 | D22: 867.7906871 | E22: 393.5143122 | F22: 980.1267335 | G22: -128.7252555 | H22: -567.1619861 | I22: -1215.549778 | J22: 456.5140378 | K22: 155.3505222 | L22: -1002.173777 | M22: 857.3294297 | N22: 1995.984259 | O22: 1190.369643 | P22: 2027.195481 | Q22: 2778.423648 | R22: -2128.116131
A23: 6=3+4+5 | B23: Gross Domestic Product (GDP) market price | C23: 28885.95643 | D23: 29367.00297 | E23: 29584.43116 | F23: 31830.60804 | G23: 34659.27888 | H23: 38638.12047 | I23: 43230.70649 | J23: 41531.71606 | K23: 45389.29662 | L23: 49463.59658 | M23: 51309.07934 | N23: 58581.0616 | O23: 64389.93927 | P23: 70142.18825 | Q23: =Q14+Q15+Q22 -> 80445.79994 | R23: =R14+R15+R22 -> 91417.81659
B25: 2019* Provisional data

Sheet Tab1.2_2013_GDP_E_Constant
A1: GDP by Expenditure approach at constant prices (2013 base year)
Q2: (GMD Million)
A3: No. | B3: Description | C3: 2004 | D3: 2005 | E3: 2006 | F3: 2007 | G3: 2008 | H3: 2009 | I3: 2010 | J3: 2011 | K3: 2012 | L3: 2013 | M3: 2014 | N3: 2015 | O3: 2016 | P3: 2017 | Q3: 2018 | R3: 2019*
A4: 1 | B4: Final Consumption Expenditure | C4: =C5+C6+C7 -> 37501.30676 | D4: 37178.62186 | E4: 37912.60611 | F4: 38838.70188 | G4: 40939.57463 | H4: 47258.03904 | I4: 49809.38753 | J4: 43201.35952 | K4: 45119.73459 | L4: 46900.46275 | M4: 46803.99117 | N4: 47201.37639 | O4: 47611.02282 | P4: 51447.76316 | Q4: 56185.01308 | R4: =R5+R6+R7 -> 58954.00201
A5: 1.1 | B5: Households Final Consumption Expenditures | C5: 33047.60798 | D5: 32591.65695 | E5: 33086.05429 | F5: 34882.07612 | G5: 37018.83506 | H5: 42499.714 | I5: 44544.93142 | J5: 37909.58894 | K5: 39683.09985 | L5: 41127.76091 | M5: 41264.21959 | N5: 41612.96277 | O5: 41771.45083 | P5: 45868.79137 | Q5: 50444.34288 | R5: 52413.54918
A6: 1.2 | B6: General Government final consumption | C6: 3685.875582 | D6: 3797.148553 | E6: 3987.110892 | F6: 3090.5104 | G6: 3015.981239 | H6: 3804.073797 | I6: 4252.937843 | J6: 4245.548213 | K6: 4352.239569 | L6: 4587.63466 | M6: 4279.533255 | N6: 4310.478354 | O6: 4482.197724 | P6: 4209.295691 | Q6: 4365.521595 | R6: 5003.524799
A7: 1.3 | B7: NPISH final consumption | C7: 767.8231996 | D7: 789.8163534 | E7: 839.4409295 | F7: 866.115367 | G7: 904.758326 | H7: 954.2512392 | I7: 1011.518267 | J7: 1046.222363 | K7: 1084.395172 | L7: 1185.067171 | M7: 1260.238324 | N7: 1277.935273 | O7: 1357.374269 | P7: 1369.676096 | Q7: 1375.148605 | R7: 1536.928029
A8: 2 | B8: Gross Fixed Capital Formation | C8: =C9+C12+C13 -> 7114.468731 | D8: =D9+D12+D13 -> 6308.669865 | E8: 6532.666198 | F8: 6616.376356 | G8: 6369.404873 | H8: 6536.446855 | I8: 6093.679002 | J8: 6482.550796 | K8: 6963.056625 | L8: 7276.853356 | M8: 7421.595567 | N8: 9877.893031 | O8: 13185.56338 | P8: 13020.83087 | Q8: 13280.50407 | R8: =R9+R12+R13 -> 16639.73854
A9: 2.1 | B9: Total Construction | C9: 4464.186569 | D9: 3229.939491 | E9: 3354.474398 | F9: 3047.061711 | G9: 3314.101505 | H9: 3413.52455 | I9: 3543.238483 | J9: 3869.216423 | K9: 4360.606909 | L9: 4556.83422 | M9: 5020.990387 | N9: 7537.987609 | O9: 10836.00198 | P9: 10721.66397 | Q9: 11120.15094 | R9: 13301.29355
A10: 2.1.1 | B10: Public Construction | L10: 2508.844982 | M10: 2185.742816 | N10: 2341.28737 | O10: 3755.640888 | P10: 3851.22588 | Q10: 3879.376033 | R10: 5212.193065
A11: 2.1.2 | B11: Private Construction | L11: 2047.989238 | M11: 2835.247571 | N11: 5196.700239 | O11: 7080.361094 | P11: 6870.438094 | Q11: 7240.774905 | R11: 8089.100489
A12: 2.2 | B12: Machinery and Equipment | C12: 1594.96953 | D12: 1967.144572 | E12: 2004.607034 | F12: 2451.991191 | G12: 1912.584976 | H12: 1974.583409 | I12: 1405.222968 | J12: 1721.314086 | K12: 1957.810537 | L12: 1835.101865 | M12: 1592.918885 | N12: 1647.197165 | O12: 1748.572695 | P12: 1740.979522 | Q12: 1660.079985 | R12: 2862.072586
A13: 2.3 | B13: Livestock | C13: 1055.312632 | D13: 1111.585803 | E13: 1173.584766 | F13: 1117.323453 | G13: 1142.718393 | H13: 1148.338895 | I13: 1145.217551 | J13: 892.0202865 | K13: 644.6391788 | L13: 884.9172717 | M13: 807.6862959 | N13: 692.708257 | O13: 600.9887042 | P13: 558.1873711 | Q13: 500.2731444 | R13: 476.3724016
A14: 3=1+2 | B14: Domestic Demand | C14: =C4+C8 -> 44615.77549 | D14: =D4+D8 -> 43487.29172 | E14: 44445.27231 | F14: 45455.07824 | G14: 47308.9795 | H14: 53794.48589 | I14: 55903.06653 | J14: 49683.91032 | K14: 52082.79122 | L14: 54177.3161 | M14: 54225.58674 | N14: 57079.26942 | O14: 60796.5862 | P14: 64468.59403 | Q14: 69465.51715 | R14: =R4+R8 -> 75593.74055
A15: 4 | B15: Net exports | C15: =C16+C19 -> -2157.341671 | D15: =D16+D19 -> -2319.616636 | E15: -3142.472725 | F15: -2831.263234 | G15: -3853.184799 | H15: -7351.845999 | I15: -4715.843775 | J15: -5322.880822 | K15: -4611.446382 | L15: -3711.545745 | M15: -5769.734398 | N15: -7187.275834 | O15: -8735.916863 | P15: -11231.01331 | Q15: -10665.76882 | R15: =R16+R19 -> -11578.51461
A16: 4.1 | B16: Export of Goods and Services (FOB) | C16: 8550.657492 | D16: 8135.408744 | E16: 8438.511466 | F16: 9567.121559 | G16: 7955.681219 | H16: 6330.147189 | I16: 7289.265188 | J16: 8145.954231 | K16: 9612.490775 | L16: 9387.777333 | M16: 10410.31925 | N16: 10009.55812 | O16: 8723.865276 | P16: 9560.442447 | Q16: 13786.61606 | R16: 13626.65553
A17: 4.1.1 | B17: Exports of Goods | C17: 4846.856099 | D17: 4394.740403 | E17: 4317.471967 | F17: 4587.19178 | G17: 3951.119367 | H17: 2256.096246 | I17: 2434.764995 | J17: 3321.599167 | K17: 4263.301824 | L17: 4730.96 | M17: 4908.140646 | N17: 3954.401463 | O17: 3646.811864 | P17: 4618.939386 | Q17: 5556.991176 | R17: 4648.0286
A18: 4.1.2 | B18: Exports of Services | C18: 3703.801393 | D18: 3740.668341 | E18: 4121.039499 | F18: 4979.929778 | G18: 4004.561852 | H18: 4074.050943 | I18: 4854.500193 | J18: 4824.355064 | K18: 5349.188951 | L18: 4656.817333 | M18: 5502.178604 | N18: 6055.156654 | O18: 5077.053412 | P18: 4941.503061 | Q18: 8229.624881 | R18: 8978.626926
A19: 4.2 | B19: Import of Goods and Services (FOB) | C19: -10707.99916 | D19: -10455.02538 | E19: -11580.98419 | F19: -12398.38479 | G19: -11808.86602 | H19: -13681.99319 | I19: -12005.10896 | J19: -13468.83505 | K19: -14223.93716 | L19: -13099.32308 | M19: -16180.05365 | N19: -17196.83395 | O19: -17459.78214 | P19: -20791.45576 | Q19: -24452.38487 | R19: -25205.17014
A20: 4.2.1 | B20: Imports of Goods | C20: -8262.802948 | D20: -8314.753862 | E20: -7647.289532 | F20: -9243.683274 | G20: -9085.263522 | H20: -10612.70479 | I20: -9389.48203 | J20: -10997.43388 | K20: -11801.73083 | L20: -10755.55568 | M20: -11748.81694 | N20: -12623.69393 | O20: -12460.2366 | P20: -15941.11499 | Q20: -20056.18809 | R20: -20955.5932
A21: 4.2.2 | B21: Imports of Services | C21: -2445.196215 | D21: -2140.271517 | E21: -3933.694658 | F21: -3154.701519 | G21: -2723.602496 | H21: -3069.288398 | I21: -2615.626933 | J21: -2471.401172 | K21: -2422.206327 | L21: -2343.767398 | M21: -4431.236712 | N21: -4573.140018 | O21: -4999.545539 | P21: -4850.340768 | Q21: -4396.196787 | R21: -4249.57694
A22: 5 | B22: Statistical discrepancies and Changes in inventories | C22: -1053.346278 | D22: -736.3231996 | E22: -1096.076558 | F22: -1193.501113 | G22: 566.3605238 | H22: 513.9107994 | I22: -1456.321336 | J22: 1326.528696 | K22: 610.9583779 | L22: -1002.173777 | M22: 311.602229 | N22: 854.4803023 | O22: -328.0089139 | P22: 989.9447962 | Q22: -648.9207816 | R22: -2342.339069
A23: 6=3+4+5 | B23: Gross Domestic Product (GDP) market price | C23: 41405.08754 | D23: 40431.35189 | E23: 40206.72303 | F23: 41430.31389 | G23: 44022.15522 | H23: 46956.55069 | I23: 49730.90142 | J23: 45687.55819 | K23: 48082.30322 | L23: 49463.59658 | M23: 48767.45457 | N23: 50746.47389 | O23: 51732.66042 | P23: 54227.52551 | Q23: =Q14+Q15+Q22 -> 58150.82755 | R23: =R14+R15+R22 -> 61672.88686
B25: 2019* Provisional data

Sheet Tab1.3_2013_GDP_E_Structure
A1: Structure of GDP by Expenditure approach
Q2: in %
A3: No. | B3: Description | C3: 2004 | D3: 2005 | E3: 2006 | F3: 2007 | G3: 2008 | H3: 2009 | I3: 2010 | J3: 2011 | K3: 2012 | L3: 2013 | M3: 2014 | N3: 2015 | O3: 2016 | P3: 2017 | Q3: 2018 | R3: 2019*
A4: 1 | B4: Final Consumption Expenditure | C4: 93.53686128 | D4: 89.34523659 | E4: 92.70349588 | F4: 88.76923035 | G4: 92.89868791 | H4: 99.86972072 | I4: 98.22293184 | J4: 94.09852262 | K4: 93.78243575 | L4: 94.81814099 | M4: 96.26061308 | N4: 89.98780798 | O4: 87.42975707 | P4: 93.89029182 | Q4: ='Tab1.1_2013_GDP_E_Current'!Q4/'Tab1.1_2013_GDP_E_Current'!Q$23*100 -> 95.32352334 | R4: ='Tab1.1_2013_GDP_E_Current'!R4/'Tab1.1_2013_GDP_E_Current'!R$23*100 -> 94.06784836
A5: 1.1 | B5: Households Final Consumption Expenditures | C5: 82.52107281 | D5: 77.85282872 | E5: 80.44178775 | F5: 78.90583342 | G5: 83.5910459 | H5: 89.3986865 | I5: 87.4530881 | J5: 82.36566658 | K5: 82.35869229 | L5: 83.14753426 | M5: 84.95088708 | N5: 79.35783281 | O5: 76.68394382 | P5: 83.84486071 | Q5: ='Tab1.1_2013_GDP_E_Current'!Q5/'Tab1.1_2013_GDP_E_Current'!Q$23*100 -> 86.54473987 | R5: ='Tab1.1_2013_GDP_E_Current'!R5/'Tab1.1_2013_GDP_E_Current'!R$23*100 -> 83.90450738
A6: 1.2 | B6: General Government final consumption | C6: 8.68236738 | D6: 9.075812818 | E6: 9.654356814 | F6: 7.328699976 | G6: 6.860137843 | H6: 8.115973094 | I6: 8.518940777 | J6: 9.27659124 | K6: 9.071684299 | L6: 9.274769683 | M6: 8.836798329 | N6: 8.326579325 | O6: 8.446617048 | P6: 7.866855129 | Q6: ='Tab1.1_2013_GDP_E_Current'!Q6/'Tab1.1_2013_GDP_E_Current'!Q$23*100 -> 6.824779993 | R6: ='Tab1.1_2013_GDP_E_Current'!R6/'Tab1.1_2013_GDP_E_Current'!R$23*100 -> 8.186615246
A7: 1.3 | B7: NPISH final consumption | C7: 2.333421089 | D7: 2.416595052 | E7: 2.607351314 | F7: 2.534696951 | G7: 2.447504167 | H7: 2.355061125 | I7: 2.250902963 | J7: 2.456264807 | K7: 2.352059159 | L7: 2.395837046 | M7: 2.472927666 | N7: 2.30339584 | O7: 2.299196196 | P7: 2.178575984 | Q7: ='Tab1.1_2013_GDP_E_Current'!Q7/'Tab1.1_2013_GDP_E_Current'!Q$23*100 -> 1.954003477 | R7: ='Tab1.1_2013_GDP_E_Current'!R7/'Tab1.1_2013_GDP_E_Current'!R$23*100 -> 1.976725735
A8: 2 | B8: Gross Fixed Capital Formation | C8: 17.385694 | D8: 15.77166981 | E8: 16.90891706 | F8: 15.8597804 | G8: 14.11036518 | H8: 13.32775781 | I8: 11.83049576 | J8: 13.67448881 | K8: 14.25292666 | L8: 14.71153305 | M8: 16.65261506 | N8: 20.34981322 | O8: 24.91993419 | P8: 22.95972974 | Q8: ='Tab1.1_2013_GDP_E_Current'!Q8/'Tab1.1_2013_GDP_E_Current'!Q$23*100 -> 20.87842426 | R8: ='Tab1.1_2013_GDP_E_Current'!R8/'Tab1.1_2013_GDP_E_Current'!R$23*100 -> 22.52398974
A9: 2.1 | B9: Total Construction | C9: 10.55699666 | D9: 7.750378089 | E9: 8.154306457 | F9: 7.255789919 | G9: 7.567620074 | H9: 7.313609367 | I9: 7.124297915 | J9: 8.454300216 | K9: 9.089124944 | L9: 9.212500778 | M9: 11.24813521 | N9: 15.71591698 | O9: 20.56189786 | P9: 18.55271161 | Q9: ='Tab1.1_2013_GDP_E_Current'!Q9/'Tab1.1_2013_GDP_E_Current'!Q$23*100 -> 16.87464131 | R9: ='Tab1.1_2013_GDP_E_Current'!R9/'Tab1.1_2013_GDP_E_Current'!R$23*100 -> 17.52945607
A10: 2.2 | B10: Machinery and Equipment | C10: 4.069094886 | D10: 5.124607674 | E10: 5.525968443 | F10: 5.674444022 | G10: 3.69477894 | H10: 3.336367187 | I10: 2.352900789 | J10: 3.246253557 | K10: 3.8083416 | L10: 3.710004916 | M10: 3.655087068 | N10: 3.173850194 | O10: 2.969505113 | P10: 3.102886318 | Q10: ='Tab1.1_2013_GDP_E_Current'!Q12/'Tab1.1_2013_GDP_E_Current'!Q$23*100 -> 2.876492901 | R10: ='Tab1.1_2013_GDP_E_Current'!R12/'Tab1.1_2013_GDP_E_Current'!R$23*100 -> 3.978852707
A11: 2.3 | B11: Livestock | C11: 2.75960246 | D11: 2.896684046 | E11: 3.22864216 | F11: 2.929546459 | G11: 2.847966162 | H11: 2.677781257 | I11: 2.353297056 | J11: 1.973935039 | K11: 1.355460113 | L11: 1.789027351 | M11: 1.749392787 | N11: 1.460046045 | O11: 1.388531219 | P11: 1.30413181 | Q11: ='Tab1.1_2013_GDP_E_Current'!Q13/'Tab1.1_2013_GDP_E_Current'!Q$23*100 -> 1.127290048 | R11: ='Tab1.1_2013_GDP_E_Current'!R13/'Tab1.1_2013_GDP_E_Current'!R$23*100 -> 1.015680962
A12: 3=1+2 | B12: Domestic Demand | C12: 110.9225553 | D12: 105.1169064 | E12: 109.6124129 | F12: 104.6290107 | G12: 107.0090531 | H12: 113.1974785 | I12: 110.0534276 | J12: 107.7730114 | K12: 108.0353624 | L12: 109.529674 | M12: 112.9132281 | N12: 110.3376212 | O12: 112.3496913 | P12: 116.8500216 | Q12: ='Tab1.1_2013_GDP_E_Current'!Q14/'Tab1.1_2013_GDP_E_Current'!Q$23*100 -> 116.2019476 | R12: ='Tab1.1_2013_GDP_E_Current'!R14/'Tab1.1_2013_GDP_E_Current'!R$23*100 -> 116.5918381
A13: 4 | B13: Net exports | C13: -7.513915786 | D13: -8.071891919 | E13: -10.9425528 | F13: -7.708206508 | G13: -6.637651083 | H13: -11.72959661 | I13: -7.24165357 | J13: -8.872205211 | K13: -8.377624865 | L13: -7.503590522 | M13: -14.58413988 | N13: -13.74483883 | O13: -14.19838013 | P13: -19.74014451 | Q13: ='Tab1.1_2013_GDP_E_Current'!Q15/'Tab1.1_2013_GDP_E_Current'!Q$23*100 -> -19.65573095 | R13: ='Tab1.1_2013_GDP_E_Current'!R15/'Tab1.1_2013_GDP_E_Current'!R$23*100 -> -14.26393726
A14: 4.1 | B14: Export of Goods and Services (FOB) | C14: 18.21661683 | D14: 18.15074219 | E14: 19.06285765 | F14: 20.38348118 | G14: 16.39090074 | H14: 11.90046888 | I14: 13.17989564 | J14: 16.86691521 | K14: 19.37674882 | L14: 18.97916444 | M14: 21.83689543 | N14: 19.59633316 | O14: 15.9115118 | P14: 16.78945538 | Q14: ='Tab1.1_2013_GDP_E_Current'!Q16/'Tab1.1_2013_GDP_E_Current'!Q$23*100 -> 21.72695158 | R14: ='Tab1.1_2013_GDP_E_Current'!R16/'Tab1.1_2013_GDP_E_Current'!R$23*100 -> 20.6373776
A15: 4.1.1 | B15: Exports of Goods | C15: 11.10340247 | D15: 10.15128783 | E15: 10.32755365 | F15: 10.40019718 | G15: 8.849219023 | H15: 4.724272242 | I15: 4.776743587 | J15: 7.253456601 | K15: 8.874713423 | L15: 9.56452892 | M15: 10.03974358 | N15: 7.626594462 | O15: 6.854332919 | P15: 8.575803352 | Q15: ='Tab1.1_2013_GDP_E_Current'!Q17/'Tab1.1_2013_GDP_E_Current'!Q$23*100 -> 9.459176247 | R15: ='Tab1.1_2013_GDP_E_Current'!R17/'Tab1.1_2013_GDP_E_Current'!R$23*100 -> 8.448779777
A16: 4.1.2 | B16: Exports of Services | C16: 7.113214357 | D16: 7.999454361 | E16: 8.735304005 | F16: 9.983284003 | G16: 7.541681721 | H16: 7.176196633 | I16: 8.403152053 | J16: 9.613458609 | K16: 10.5020354 | L16: 9.41463552 | M16: 11.79715185 | N16: 11.9697387 | O16: 9.057178884 | P16: 8.213652026 | Q16: ='Tab1.1_2013_GDP_E_Current'!Q18/'Tab1.1_2013_GDP_E_Current'!Q$23*100 -> 12.26777533 | R16: ='Tab1.1_2013_GDP_E_Current'!R18/'Tab1.1_2013_GDP_E_Current'!R$23*100 -> 12.18859782
A17: 4.2 | B17: Import of Goods and Services (FOB) | C17: -25.73053261 | D17: -26.22263411 | E17: -30.00541045 | F17: -28.09168769 | G17: -23.02855183 | H17: -23.63006548 | I17: -20.42154921 | J17: -25.73912042 | K17: -27.75437369 | L17: -26.48275496 | M17: -36.4210353 | N17: -33.34117199 | O17: -30.10989193 | P17: -36.52959989 | Q17: ='Tab1.1_2013_GDP_E_Current'!Q19/'Tab1.1_2013_GDP_E_Current'!Q$23*100 -> -41.38268253 | R17: ='Tab1.1_2013_GDP_E_Current'!R19/'Tab1.1_2013_GDP_E_Current'!R$23*100 -> -34.90131485
A18: 4.2.1 | B18: Imports of Goods | C18: -21.08010754 | D18: -21.66076254 | E18: -21.08078038 | F18: -21.39190528 | G18: -17.55113668 | H18: -17.93182292 | I18: -15.72171831 | J18: -20.74023512 | K18: -22.9567783 | L18: -21.74438663 | M18: -26.95865386 | N18: -24.32356871 | O18: -21.16053648 | P18: -28.41128627 | Q18: ='Tab1.1_2013_GDP_E_Current'!Q20/'Tab1.1_2013_GDP_E_Current'!Q$23*100 -> -34.75223072 | R18: ='Tab1.1_2013_GDP_E_Current'!R20/'Tab1.1_2013_GDP_E_Current'!R$23*100 -> -29.13246126
A19: 4.2.2 | B19: Imports of Services | C19: -4.650425072 | D19: -4.561871571 | E19: -8.924630072 | F19: -6.699782416 | G19: -5.477415143 | H19: -5.698242565 | I19: -4.699830895 | J19: -4.998885302 | K19: -4.797595385 | L19: -4.738368336 | M19: -9.462381439 | N19: -9.017603276 | O19: -8.949355453 | P19: -8.118313622 | Q19: ='Tab1.1_2013_GDP_E_Current'!Q21/'Tab1.1_2013_GDP_E_Current'!Q$23*100 -> -6.630451812 | R19: ='Tab1.1_2013_GDP_E_Current'!R21/'Tab1.1_2013_GDP_E_Current'!R$23*100 -> -5.768853596
A20: 5 | B20: Statistical discrepancies and Changes in inventories | C20: -3.4086395 | D20: 2.954985525 | E20: 1.330139863 | F20: 3.079195762 | G20: -0.3714020015 | H20: -1.467881924 | I20: -2.811774029 | J20: 1.099193775 | K20: 0.3422624578 | L20: -2.026083516 | M20: 1.670911739 | N20: 3.407217631 | O20: 1.848688873 | P20: 2.890122951 | Q20: ='Tab1.1_2013_GDP_E_Current'!Q22/'Tab1.1_2013_GDP_E_Current'!Q$23*100 -> 3.453783355 | R20: ='Tab1.1_2013_GDP_E_Current'!R22/'Tab1.1_2013_GDP_E_Current'!R$23*100 -> -2.327900851
A21: 6=3+4+5 | B21: Gross Domestic Product (GDP) market price | C21: 100 | D21: 100 | E21: 100 | F21: 100 | G21: 100 | H21: 100 | I21: 100 | J21: 100 | K21: 100 | L21: 100 | M21: 100 | N21: 100 | O21: 100 | P21: 100 | Q21: ='Tab1.1_2013_GDP_E_Current'!Q23/'Tab1.1_2013_GDP_E_Current'!Q$23*100 -> 100 | R21: ='Tab1.1_2013_GDP_E_Current'!R23/'Tab1.1_2013_GDP_E_Current'!R$23*100 -> 100
B23: 2019* Provisional data

Sheet Tab1.4_2013_GDP_E_Growth rates
A1: Real growth rates of GDP by Expenditure approach
A3: No. | B3: Description | C3: 2005 | D3: 2006 | E3: 2007 | F3: 2008 | G3: 2009 | H3: 2010 | I3: 2011 | J3: 2012 | K3: 2013 | L3: 2014 | M3: 2015 | N3: 2016 | O3: 2017 | P3: 2018 | Q3: 2019*
A4: 1 | B4: Final Consumption Expenditure | C4: -0.008604630882 | D4: 0.01974210494 | E4: 0.02442711976 | F4: 0.05409224924 | G4: 0.1543363474 | H4: 0.05398760808 | I4: -0.1326663173 | J4: 0.04440543298 | K4: 0.03946672487 | L4: -0.002056942945 | M4: 0.008490413161 | N4: 0.008678696632 | O4: 0.08058512737 | P4: =('Tab1.2_2013_GDP_E_Constant'!Q4/'Tab1.2_2013_GDP_E_Constant'!P4)-1 -> 0.09207883162 | Q4: =('Tab1.2_2013_GDP_E_Constant'!R4/'Tab1.2_2013_GDP_E_Constant'!Q4)-1 -> 0.04928340807
A5: 1.1 | B5: Households Final Consumption Expenditures | C5: -0.01379679362 | D5: 0.01516944472 | E5: 0.05428334876 | F5: 0.06125664476 | G5: 0.1480564943 | H5: 0.04812308659 | I5: -0.1489584171 | J5: 0.04678264681 | K5: 0.03640494483 | L5: 0.003317921341 | M5: 0.008451466646 | N5: 0.003808622338 | O5: 0.09808949569 | P5: =('Tab1.2_2013_GDP_E_Constant'!Q5/'Tab1.2_2013_GDP_E_Constant'!P5)-1 -> 0.09975304275 | Q5: =('Tab1.2_2013_GDP_E_Constant'!R5/'Tab1.2_2013_GDP_E_Constant'!Q5)-1 -> 0.03903720789
A6: 1.2 | B6: General Government final consumption | C6: 0.03018901977 | D6: 0.05002762912 | E6: -0.2248747316 | F6: -0.02411548647 | G6: 0.2613055242 | H6: 0.1179956199 | I6: -0.001737535357 | J6: 0.02513017174 | K6: 0.05408596821 | L6: -0.06715909775 | M6: 0.007230951715 | N6: 0.03983765987 | O6: -0.06088576418 | P6: =('Tab1.2_2013_GDP_E_Constant'!Q6/'Tab1.2_2013_GDP_E_Constant'!P6)-1 -> 0.03711449987 | Q6: =('Tab1.2_2013_GDP_E_Constant'!R6/'Tab1.2_2013_GDP_E_Constant'!Q6)-1 -> 0.1461459278
A7: 1.3 | B7: NPISH final consumption | C7: 0.02864351308 | D7: 0.06283052493 | E7: 0.03177643186 | F7: 0.04461641081 | G7: 0.05470290994 | H7: 0.06001252619 | I7: 0.03430891731 | J7: 0.0364863244 | K7: 0.0928370046 | L7: 0.06343197647 | M7: 0.0140425413 | N7: 0.06216198734 | O7: 0.009062958146 | P7: =('Tab1.2_2013_GDP_E_Constant'!Q7/'Tab1.2_2013_GDP_E_Constant'!P7)-1 -> 0.003995477369 | Q7: =('Tab1.2_2013_GDP_E_Constant'!R7/'Tab1.2_2013_GDP_E_Constant'!Q7)-1 -> 0.1176450479
A8: 2 | B8: Gross Fixed Capital Formation | C8: -0.1132619871 | D8: 0.03550611103 | E8: 0.01281408776 | F8: -0.03732730267 | G8: 0.02622568116 | H8: -0.06773830834 | I8: 0.06381560194 | J8: 0.07412295632 | K8: 0.04506594564 | L8: 0.01989076926 | M8: 0.3309662244 | N8: 0.3348558584 | O8: -0.01249339972 | P8: =('Tab1.2_2013_GDP_E_Constant'!Q8/'Tab1.2_2013_GDP_E_Constant'!P8)-1 -> 0.01994290552 | Q8: =('Tab1.2_2013_GDP_E_Constant'!R8/'Tab1.2_2013_GDP_E_Constant'!Q8)-1 -> 0.2529448021
A9: 2.1 | B9: Total Construction | C9: -0.2764774856 | D9: 0.0385564211 | E9: -0.09164257957 | F9: 0.0876384591 | G9: 0.03 | H9: 0.038 | I9: 0.092 | J9: 0.127 | K9: 0.045 | L9: 0.101859349 | M9: 0.5012949694 | N9: 0.4375192087 | O9: -0.01055167844 | P9: =('Tab1.2_2013_GDP_E_Constant'!Q9/'Tab1.2_2013_GDP_E_Constant'!P9)-1 -> 0.03716652236 | Q9: =('Tab1.2_2013_GDP_E_Constant'!R9/'Tab1.2_2013_GDP_E_Constant'!Q9)-1 -> 0.1961432563
A10: 2.2 | B10: Machinery and Equipment | C10: 0.2333430414 | D10: 0.01904408189 | E10: 0.2231779844 | F10: -0.2199870119 | G10: 0.03241604135 | H10: -0.2883445888 | I10: 0.2249401874 | J10: 0.1373929682 | K10: -0.06267647974 | L10: -0.1319724997 | M10: 0.03407472987 | N10: 0.0615442592 | O10: -0.004342497345 | P10: =('Tab1.2_2013_GDP_E_Constant'!Q12/'Tab1.2_2013_GDP_E_Constant'!P12)-1 -> -0.04646782821 | Q10: =('Tab1.2_2013_GDP_E_Constant'!R12/'Tab1.2_2013_GDP_E_Constant'!Q12)-1 -> 0.7240570403
A11: 2.3 | B11: Livestock | C11: 0.05332369651 | D11: 0.05577523846 | E11: -0.04793970916 | F11: 0.02272836871 | G11: 0.004918536901 | H11: -0.00271813852 | I11: -0.2210909747 | J11: -0.2773267733 | K11: 0.3727326865 | L11: -0.0872747976 | M11: -0.142354822 | N11: -0.1324071886 | O11: -0.07121819889 | P11: =('Tab1.2_2013_GDP_E_Constant'!Q13/'Tab1.2_2013_GDP_E_Constant'!P13)-1 -> -0.1037540971 | Q11: =('Tab1.2_2013_GDP_E_Constant'!R13/'Tab1.2_2013_GDP_E_Constant'!Q13)-1 -> -0.04777538646
A12: 3=1+2 | B12: Domestic Demand | C12: -0.02529338011 | D12: 0.02202897787 | E12: 0.02272021017 | F12: 0.04078534966 | G12: 0.1370882751 | H12: 0.03919696606 | I12: -0.1112489279 | J12: 0.04828285232 | K12: 0.04021529633 | L12: 0.0008909750157 | M12: 0.05262612833 | N12: 0.06512551429 | O12: 0.06039825677 | P12: =('Tab1.2_2013_GDP_E_Constant'!Q14/'Tab1.2_2013_GDP_E_Constant'!P14)-1 -> 0.07750941673 | Q12: =('Tab1.2_2013_GDP_E_Constant'!R14/'Tab1.2_2013_GDP_E_Constant'!Q14)-1 -> 0.08821964699
A13: 4 | B13: Net exports | C13: 0.07521987213 | D13: 0.3547379667 | E13: -0.09903331485 | F13: 0.3609419119 | G13: 0.9079920592 | H13: -0.3585497064 | I13: 0.1287228917 | J13: -0.1336559025 | K13: -0.1951449855 | L13: 0.5545367872 | M13: 0.2456857351 | N13: 0.2154698197 | O13: 0.2856135757 | P13: =('Tab1.2_2013_GDP_E_Constant'!Q15/'Tab1.2_2013_GDP_E_Constant'!P15)-1 -> -0.05032889564 | Q13: =('Tab1.2_2013_GDP_E_Constant'!R15/'Tab1.2_2013_GDP_E_Constant'!Q15)-1 -> 0.08557712167
A14: 4.1 | B14: Export of Goods and Services (FOB) | C14: -0.04856337057 | D14: 0.03725722104 | E14: 0.1337451632 | F14: -0.168435232 | G14: -0.2043236758 | H14: 0.151515908 | I14: 0.1175274902 | J14: 0.1800325048 | K14: -0.02337723355 | L14: 0.1089226853 | M14: -0.03849652671 | N14: -0.1284465134 | O14: 0.0958952419 | P14: =('Tab1.2_2013_GDP_E_Constant'!Q16/'Tab1.2_2013_GDP_E_Constant'!P16)-1 -> 0.4420479108 | Q14: =('Tab1.2_2013_GDP_E_Constant'!R16/'Tab1.2_2013_GDP_E_Constant'!Q16)-1 -> -0.01160259563
A15: 4.1.1 | B15: Exports of Goods | C15: -0.09328019796 | D15: -0.01758202503 | E15: 0.06247169994 | F15: -0.1386627033 | G15: -0.4289982061 | H15: 0.07919376183 | I15: 0.3642380983 | J15: 0.2835088192 | K15: 0.1096938933 | L15: 0.03745130926 | M15: -0.1943178185 | N15: -0.07778411012 | O15: 0.2665691454 | P15: =('Tab1.2_2013_GDP_E_Constant'!Q17/'Tab1.2_2013_GDP_E_Constant'!P17)-1 -> 0.203088136 | Q15: =('Tab1.2_2013_GDP_E_Constant'!R17/'Tab1.2_2013_GDP_E_Constant'!Q17)-1 -> -0.163570995
A16: 4.1.2 | B16: Exports of Services | C16: 0.009953813428 | D16: 0.1016853468 | E16: 0.20841593 | F16: -0.1958597751 | G16: 0.01735248282 | H16: 0.1915659036 | I16: -0.006209728672 | J16: 0.1087884038 | K16: -0.1294348777 | L16: 0.1815319798 | M16: 0.100501654 | N16: -0.161532277 | O16: -0.02669862612 | P16: =('Tab1.2_2013_GDP_E_Constant'!Q18/'Tab1.2_2013_GDP_E_Constant'!P18)-1 -> 0.6654092447 | Q16: =('Tab1.2_2013_GDP_E_Constant'!R18/'Tab1.2_2013_GDP_E_Constant'!Q18)-1 -> 0.09101290224
A17: 4.2 | B17: Import of Goods and Services (FOB) | C17: -0.02362474818 | D17: 0.1076954641 | E17: 0.07058127261 | F17: -0.0475480302 | G17: 0.15862041 | H17: -0.1225613989 | I17: 0.1219252649 | J17: 0.05606291125 | K17: -0.07906489368 | L17: 0.2351824251 | M17: 0.06284159039 | N17: 0.01529049989 | O17: 0.1908198852 | P17: =('Tab1.2_2013_GDP_E_Constant'!Q19/'Tab1.2_2013_GDP_E_Constant'!P19)-1 -> 0.176078537 | Q17: =('Tab1.2_2013_GDP_E_Constant'!R19/'Tab1.2_2013_GDP_E_Constant'!Q19)-1 -> 0.0307857605
A18: 4.2.1 | B18: Imports of Goods | C18: 0.006287323357 | D18: -0.08027469498 | E18: 0.2087528836 | F18: -0.01713816318 | G18: 0.168122946 | H18: -0.1152602267 | I18: 0.1712503252 | J18: 0.07313496568 | K18: -0.08864590842 | L18: 0.09234866938 | M18: 0.07446511441 | N18: -0.01294845505 | O18: 0.2793589324 | P18: =('Tab1.2_2013_GDP_E_Constant'!Q20/'Tab1.2_2013_GDP_E_Constant'!P20)-1 -> 0.2581421121 | Q18: =('Tab1.2_2013_GDP_E_Constant'!R20/'Tab1.2_2013_GDP_E_Constant'!Q20)-1 -> 0.0448442699
A19: 4.2.2 | B19: Imports of Services | C19: -0.1247035702 | D19: 0.8379418809 | E19: -0.1980309117 | F19: -0.1366528718 | G19: 0.1269223031 | H19: -0.1478067247 | I19: -0.05514003503 | J19: -0.01990564937 | K19: -0.03238325641 | L19: 0.8906469623 | M19: 0.03202340921 | N19: 0.09324130018 | O19: -0.02984366673 | P19: =('Tab1.2_2013_GDP_E_Constant'!Q21/'Tab1.2_2013_GDP_E_Constant'!P21)-1 -> -0.09363135556 | Q19: =('Tab1.2_2013_GDP_E_Constant'!R21/'Tab1.2_2013_GDP_E_Constant'!Q21)-1 -> -0.03335152048
A20: 5 | B20: Statistical discrepancies and Changes in inventories
A21: 6=3+4+5 | B21: Gross Domestic Product (GDP) market price | C21: -0.02351729492 | D21: -0.0055558088 | E21: 0.03043249415 | F21: 0.06255905613 | G21: 0.06665724237 | H21: 0.05908335867 | I21: -0.08130444281 | J21: 0.05241569304 | K21: 0.02872768717 | L21: -0.0140738252 | M21: 0.04058073854 | N21: 0.01943359718 | O21: 0.04822611213 | P21: =('Tab1.2_2013_GDP_E_Constant'!Q23/'Tab1.2_2013_GDP_E_Constant'!P23)-1 -> 0.07234890405 | Q21: =('Tab1.2_2013_GDP_E_Constant'!R23/'Tab1.2_2013_GDP_E_Constant'!Q23)-1 -> 0.06056765597
B23: 2019* Provisional data

Sheet Tab1.5_2013_GDP_E_Deflators
A1: Deflators of GDP by Expenditure approach
A3: No. | B3: Description | C3: 2004 | D3: 2005 | E3: 2006 | F3: 2007 | G3: 2008 | H3: 2009 | I3: 2010 | J3: 2011 | K3: 2012 | L3: 2013 | M3: 2014 | N3: 2015 | O3: 2016 | P3: 2017 | Q3: 2018 | R3: 2019*
A4: 1 | B4: Final Consumption Expenditure | C4: 72.04820133 | D4: 70.57286412 | E4: 72.33953224 | F4: 72.75162247 | G4: 78.64765478 | H4: 81.65337323 | I4: 85.24992873 | J4: 90.46180877 | K4: 94.34272681 | L4: 100 | M4: 105.5261167 | N4: 111.6827882 | O4: 118.2414579 | P4: 128.006936 | Q4: ='Tab1.1_2013_GDP_E_Current'!Q4/'Tab1.2_2013_GDP_E_Constant'!Q4*100 -> 136.4843873 | R4: ='Tab1.1_2013_GDP_E_Current'!R4/'Tab1.2_2013_GDP_E_Constant'!R4*100 -> 145.867575
A5: 1.1 | B5: Households Final Consumption Expenditures | C5: 72.12927832 | D5: 70.14998519 | E5: 71.92832699 | F5: 72.00318717 | G5: 78.26300766 | H5: 81.2757756 | I5: 84.87292859 | J5: 90.23541465 | K5: 94.2013887 | L5: 100 | M5: 105.6302978 | N5: 111.7167773 | O5: 118.2069186 | P5: 128.2148892 | Q5: ='Tab1.1_2013_GDP_E_Current'!Q5/'Tab1.2_2013_GDP_E_Constant'!Q5*100 -> 138.016682 | R5: ='Tab1.1_2013_GDP_E_Current'!R5/'Tab1.2_2013_GDP_E_Constant'!R5*100 -> 146.3432068
A6: 1.2 | B6: General Government final consumption | C6: 68.04312307 | D6: 70.19199231 | E6: 71.63549303 | F6: 75.48169918 | G6: 78.83584541 | H6: 82.4342436 | I6: 86.59421839 | J6: 90.74746865 | K6: 94.60815817 | L6: 100 | M6: 105.9479994 | N6: 113.1614212 | O6: 121.3416257 | P6: 131.0904422 | Q6: ='Tab1.1_2013_GDP_E_Current'!Q6/'Tab1.2_2013_GDP_E_Constant'!Q6*100 -> 125.763869 | R6: ='Tab1.1_2013_GDP_E_Current'!R6/'Tab1.2_2013_GDP_E_Constant'!R6*100 -> 149.5750538
A7: 1.3 | B7: NPISH final consumption | C7: 87.78466182 | D7: 89.85399425 | E7: 91.89092735 | F7: 93.15265404 | G7: 93.7584403 | H7: 95.35762878 | I7: 96.20006732 | J7: 97.50593766 | K7: 98.44963682 | L7: 100 | M7: 100.6822593 | N7: 105.5885822 | O7: 109.0672682 | P7: 111.5665867 | Q7: ='Tab1.1_2013_GDP_E_Current'!Q7/'Tab1.2_2013_GDP_E_Constant'!Q7*100 -> 114.3086443 | R7: ='Tab1.1_2013_GDP_E_Current'!R7/'Tab1.2_2013_GDP_E_Constant'!R7*100 -> 117.5773669
A8: 2 | B8: Gross Fixed Capital Formation | C8: 70.58888281 | D8: 73.41748484 | E8: 76.57527227 | F8: 76.29953713 | G8: 76.78191158 | H8: 78.78278877 | I8: 83.92970645 | J8: 87.60825862 | K8: 92.90895517 | L8: 100 | M8: 115.1275813 | N8: 120.6850143 | O8: 121.6931732 | P8: 123.6822521 | Q8: ='Tab1.1_2013_GDP_E_Current'!Q8/'Tab1.2_2013_GDP_E_Constant'!Q8*100 -> 126.4697132 | R8: ='Tab1.1_2013_GDP_E_Current'!R8/'Tab1.2_2013_GDP_E_Constant'!R8*100 -> 123.745572
A9: 2.1 | B9: Total Construction | C9: 68.31008086 | D9: 70.46738089 | E9: 71.9160409 | F9: 75.79636606 | G9: 79.14309632 | H9: 82.78367876 | I9: 86.92286269 | J9: 90.74746865 | K9: 94.60815817 | L9: 100 | M9: 114.9437496 | N9: 122.1353959 | O9: 122.1833806 | P9: 121.3736779 | Q9: ='Tab1.1_2013_GDP_E_Current'!Q9/'Tab1.2_2013_GDP_E_Constant'!Q9*100 -> 122.0751433 | R9: ='Tab1.1_2013_GDP_E_Current'!R9/'Tab1.2_2013_GDP_E_Constant'!R9*100 -> 120.4773501
A10: 2.2 | B10: Machinery and Equipment | C10: 73.69400817 | D10: 76.50396975 | E10: 81.55345673 | F10: 73.66299037 | G10: 66.95565181 | H10: 65.28514151 | I10: 72.385355 | J10: 78.32532255 | K10: 88.29145784 | L10: 100 | M10: 117.7330209 | N10: 112.8750811 | O10: 109.3499026 | P10: 125.0119449 | Q10: ='Tab1.1_2013_GDP_E_Current'!Q12/'Tab1.2_2013_GDP_E_Constant'!Q12*100 -> 139.3919417 | R10: ='Tab1.1_2013_GDP_E_Current'!R12/'Tab1.2_2013_GDP_E_Constant'!R12*100 -> 127.0890294
A11: 2.3 | B11: Livestock | C11: 75.53567919 | D11: 76.52754182 | E11: 81.3895549 | F11: 83.45769954 | G11: 86.3803839 | H11: 90.09921654 | I11: 88.83438278 | J11: 91.90475913 | K11: 95.4384765 | L11: 100 | M11: 111.1319255 | N11: 123.4734052 | O11: 148.7672568 | P11: 163.8780517 | Q11: ='Tab1.1_2013_GDP_E_Current'!Q13/'Tab1.2_2013_GDP_E_Constant'!Q13*100 -> 181.2724722 | R11: ='Tab1.1_2013_GDP_E_Current'!R13/'Tab1.2_2013_GDP_E_Constant'!R13*100 -> 194.9133401
A12: 3=1+2 | B12: Domestic Demand | C12: 71.81549718 | D12: 70.98553118 | E12: 72.96211084 | F12: 73.26805187 | G12: 78.39646201 | H12: 81.30457498 | I12: 85.10601872 | J12: 90.08948937 | K12: 94.1510429 | L12: 100 | M12: 106.840223 | N12: 113.2406748 | O12: 118.9900659 | P12: 127.1334722 | Q12: ='Tab1.1_2013_GDP_E_Current'!Q14/'Tab1.2_2013_GDP_E_Constant'!Q14*100 -> 134.5697695 | R12: ='Tab1.1_2013_GDP_E_Current'!R14/'Tab1.2_2013_GDP_E_Constant'!R14*100 -> 140.9980667
A13: 4 | B13: Net exports | C13: 100.6083769 | D13: 102.1924357 | E13: 103.017346 | F13: 86.65986866 | G13: 59.70546756 | H13: 61.64568283 | I13: 66.38510836 | J13: 69.22527856 | K13: 82.4588358 | L13: 100 | M13: 129.6938019 | N13: 112.0295462 | O13: 104.6521903 | P13: 123.2851296 | Q13: ='Tab1.1_2013_GDP_E_Current'!Q15/'Tab1.2_2013_GDP_E_Constant'!Q15*100 -> 148.2519476 | R13: ='Tab1.1_2013_GDP_E_Current'!R15/'Tab1.2_2013_GDP_E_Constant'!R15*100 -> 112.6204909
A14: 4.1 | B14: Export of Goods and Services (FOB) | C14: 61.53964189 | D14: 65.52011298 | E14: 66.83214241 | F14: 67.81753488 | G14: 71.40768771 | H14: 72.63839785 | I14: 78.16647979 | J14: 85.99507356 | K14: 91.49522435 | L14: 100 | M14: 107.6269587 | N14: 114.6877801 | O14: 117.4412083 | P14: 123.1793556 | Q14: ='Tab1.1_2013_GDP_E_Current'!Q16/'Tab1.2_2013_GDP_E_Constant'!Q16*100 -> 126.7781733 | R14: ='Tab1.1_2013_GDP_E_Current'!R16/'Tab1.2_2013_GDP_E_Constant'!R16*100 -> 138.4509938
A15: 4.1.1 | B15: Exports of Goods | C15: 66.17328706 | D15: 67.83401809 | E15: 70.76706052 | F15: 72.16715931 | G15: 77.62548318 | H15: 80.90833903 | I15: 84.81393498 | J15: 90.69381489 | K15: 94.48474834 | L15: 100 | M15: 104.9542051 | N15: 112.9814472 | O15: 121.0235397 | P15: 130.2302461 | Q15: ='Tab1.1_2013_GDP_E_Current'!Q17/'Tab1.2_2013_GDP_E_Constant'!Q17*100 -> 136.9357942 | R15: ='Tab1.1_2013_GDP_E_Current'!R17/'Tab1.2_2013_GDP_E_Constant'!R17*100 -> 166.1713097
A16: 4.1.2 | B16: Exports of Services | C16: 55.47597676 | D16: 62.80161153 | E16: 62.70966345 | F16: 63.81093994 | G16: 65.27287121 | H16: 68.05873414 | I16: 74.83246175 | J16: 82.75996025 | K16: 89.11257471 | L16: 100 | M16: 110.0111508 | N16: 115.8021237 | O16: 114.8680447 | P16: 116.588722 | Q16: ='Tab1.1_2013_GDP_E_Current'!Q18/'Tab1.2_2013_GDP_E_Constant'!Q18*100 -> 119.9193176 | R16: ='Tab1.1_2013_GDP_E_Current'!R18/'Tab1.2_2013_GDP_E_Constant'!R18*100 -> 124.100824
A17: 4.2 | B17: Import of Goods and Services (FOB) | C17: 69.41082388 | D17: 73.65646147 | E17: 76.650912 | F17: 72.12032172 | G17: 67.58930102 | H17: 66.73160147 | I17: 73.53852453 | J17: 79.36765405 | K17: 88.56559798 | L17: 100 | M17: 115.4958958 | N17: 113.576793 | O17: 111.0422855 | P17: 123.236492 | Q17: ='Tab1.1_2013_GDP_E_Current'!Q19/'Tab1.2_2013_GDP_E_Constant'!Q19*100 -> 136.1447162 | R17: ='Tab1.1_2013_GDP_E_Current'!R19/'Tab1.2_2013_GDP_E_Constant'!R19*100 -> 126.5852197
A18: 4.2.1 | B18: Imports of Goods | C18: 73.69400817 | D18: 76.50396975 | E18: 81.55345673 | F18: 73.66299037 | G18: 66.95565181 | H18: 65.28514151 | I18: 72.385355 | J18: 78.32532255 | K18: 88.29145784 | L18: 100 | M18: 117.7330209 | N18: 112.8750811 | O18: 109.3499026 | P18: 125.0119449 | Q18: ='Tab1.1_2013_GDP_E_Current'!Q20/'Tab1.2_2013_GDP_E_Constant'!Q20*100 -> 139.3919417 | R18: ='Tab1.1_2013_GDP_E_Current'!R20/'Tab1.2_2013_GDP_E_Constant'!R20*100 -> 127.0890294
A19: 4.2.2 | B19: Imports of Services | C19: 54.93709469 | D19: 62.59415916 | E19: 67.12013182 | F19: 67.60010313 | G19: 69.70299787 | H19: 71.73303845 | I19: 77.67813042 | J19: 84.00590214 | K19: 89.90129272 | L19: 100 | M19: 109.5644651 | N19: 115.5137982 | O19: 115.2601671 | P19: 117.4012939 | Q19: ='Tab1.1_2013_GDP_E_Current'!Q21/'Tab1.2_2013_GDP_E_Constant'!Q21*100 -> 121.3303284 | R19: ='Tab1.1_2013_GDP_E_Current'!R21/'Tab1.2_2013_GDP_E_Constant'!R21*100 -> 124.100824
A20: 5 | B20: Statistical discrepancies and Changes in inventories
A21: 6=3+4+5 | B21: Gross Domestic Product (GDP) market price | C21: 69.76426846 | D21: 72.63423458 | E21: 73.58080672 | F21: 76.82927076 | G21: 78.7314449 | H21: 82.28483544 | I21: 86.92926381 | J21: 90.90377711 | K21: 94.39917306 | L21: 100 | M21: 105.2117233 | N21: 115.4386839 | O21: 124.4667078 | P21: 129.347942 | Q21: ='Tab1.1_2013_GDP_E_Current'!Q23/'Tab1.2_2013_GDP_E_Constant'!Q23*100 -> 138.3399056 | R21: ='Tab1.1_2013_GDP_E_Current'!R23/'Tab1.2_2013_GDP_E_Constant'!R23*100 -> 148.2301563
B23: 2019* Provisional data
